[Event "*** Titled Tuesday Blitz"]
[Site "Chess.com"]
[Date "2020.10.27"]
[Round "5"]
[White "Dream2World_Number1"]
[Black "boasovietica"]
[Result "0-1"]
[WhiteElo "2068"]
[BlackElo "2490"]
[TimeControl "180+1"]
[EndTime "10:57:22 PDT"]
[Termination "boasovietica won by resignation"]

1. e4 {[%clk 0:03:00.9]} 1... e5 {[%clk 0:02:59.5]} 2. Nf3 {[%clk 0:03:00.8]}
2... Nc6 {[%clk 0:02:58.5]} 3. Bb5 {[%clk 0:03:00.9]} 3... a6 {[%clk 0:02:57.4]}
4. Ba4 {[%clk 0:03:00.8]} 4... Nf6 {[%clk 0:02:57.4]} 5. O-O {[%clk 0:03:00.4]}
5... Be7 {[%clk 0:02:56.9]} 6. Re1 {[%clk 0:03:00.1]} 6... b5 {[%clk 0:02:56.5]}
7. Bb3 {[%clk 0:03:00.4]} 7... d6 {[%clk 0:02:57.1]} 8. c3 {[%clk 0:03:00.5]}
8... O-O {[%clk 0:02:56.9]} 9. a4 {[%clk 0:03:00.3]} 9... Bg4 {[%clk 0:02:45.1]}
10. h3 {[%clk 0:02:58.4]} 10... Bh5 {[%clk 0:02:43.6]} 11. d3 {[%clk 0:02:57.9]}
11... Rb8 {[%clk 0:02:34.8]} 12. axb5 {[%clk 0:02:44.2]} 12... axb5 {[%clk
0:02:35.7]} 13. Bg5 {[%clk 0:02:44.2]} 13... b4 {[%clk 0:02:24]} 14. Nbd2 {[%clk
0:02:41.6]} 14... bxc3 {[%clk 0:02:20.8]} 15. bxc3 {[%clk 0:02:42.5]} 15... Nd7
{[%clk 0:02:15.9]} 16. Bxe7 {[%clk 0:02:39.3]} 16... Nxe7 {[%clk 0:02:16.8]} 17.
g4 {[%clk 0:02:38.4]} 17... Bg6 {[%clk 0:02:16.4]} 18. Nf1 {[%clk 0:02:30.6]}
18... Nc5 {[%clk 0:02:16]} 19. Bc2 {[%clk 0:02:30.7]} 19... Ne6 {[%clk
0:02:13.5]} 20. Ne3 {[%clk 0:02:19.7]} 20... Nf4 {[%clk 0:02:12.2]} 21. Kh2
{[%clk 0:02:17.3]} 21... f6 {[%clk 0:01:52.1]} 22. Nf5 {[%clk 0:02:14]} 22...
Nxf5 {[%clk 0:01:42.9]} 23. gxf5 {[%clk 0:02:12]} 23... Bh5 {[%clk 0:01:42.8]}
24. Rg1 {[%clk 0:02:07.1]} 24... Rb2 {[%clk 0:01:40.2]} 25. Rg3 {[%clk 0:01:57]}
25... Qb8 {[%clk 0:01:27.9]} 26. Ra3 {[%clk 0:01:39.7]} 26... Qb6 {[%clk
0:01:24.9]} 27. Kg1 {[%clk 0:01:19.9]} 27... Rb8 {[%clk 0:01:15.9]} 28. Kf1
{[%clk 0:00:57.6]} 28... Kf8 {[%clk 0:01:00]} 29. Qc1 {[%clk 0:00:55.3]} 29...
Nxd3 {[%clk 0:00:37.2]} 30. Qd2 {[%clk 0:00:43.6]} 30... Qxf2+ {[%clk
0:00:26.6]} 31. Qxf2 {[%clk 0:00:43]} 31... Nxf2 {[%clk 0:00:27]} 32. Ne1 {[%clk
0:00:37.8]} 32... Nd1 {[%clk 0:00:20.4]} 33. Ra7 {[%clk 0:00:36.2]} 33... R2b7
{[%clk 0:00:12.9]} 34. Ra1 {[%clk 0:00:36.4]} 34... Nb2 {[%clk 0:00:12.9]} 35.
Kf2 {[%clk 0:00:22.9]} 35... Nc4 {[%clk 0:00:12.5]} 36. Nd3 {[%clk 0:00:22.4]}
36... c6 {[%clk 0:00:09.3]} 37. Nb4 {[%clk 0:00:22.1]} 37... Rc7 {[%clk
0:00:06.3]} 38. Na6 {[%clk 0:00:21]} 38... Ra8 {[%clk 0:00:05.7]} 39. Bd3 {[%clk
0:00:17.3]} 39... d5 {[%clk 0:00:04.8]} 40. Bxc4 {[%clk 0:00:06.3]} 40... dxc4
{[%clk 0:00:04.4]} 41. Nxc7 {[%clk 0:00:07.2]} 41... Rxa1 {[%clk 0:00:04.4]} 42.
Ne6+ {[%clk 0:00:08.1]} 42... Ke7 {[%clk 0:00:04]} 43. Rxg7+ {[%clk 0:00:08.3]}
43... Kd6 {[%clk 0:00:04.5]} 44. Rxh7 {[%clk 0:00:09.2]} 44... Ra2+ {[%clk
0:00:04.4]} 45. Kg3 {[%clk 0:00:09.3]} 45... Be2 {[%clk 0:00:04.4]} 46. h4
{[%clk 0:00:07]} 46... Rc2 {[%clk 0:00:03.7]} 47. Rh8 {[%clk 0:00:07.1]} 47...
Rxc3+ {[%clk 0:00:04.1]} 48. Kf2 {[%clk 0:00:07.7]} 48... Bf3 {[%clk 0:00:03.5]}
49. Rd8+ {[%clk 0:00:08.6]} 49... Ke7 {[%clk 0:00:03.6]} 50. Rd2 {[%clk
0:00:07.9]} 50... Bxe4 {[%clk 0:00:03.7]} 51. Nc5 {[%clk 0:00:03.7]} 51... Bxf5
{[%clk 0:00:03.5]} 52. h5 {[%clk 0:00:04.6]} 52... Rc2 {[%clk 0:00:03.8]} 53.
Ke3 {[%clk 0:00:02.3]} 53... Rxd2 {[%clk 0:00:03.9]} 54. Kxd2 {[%clk 0:00:03.2]}
54... Kd6 {[%clk 0:00:04.5]} 55. Nb7+ {[%clk 0:00:02.8]} 55... Kd5 {[%clk
0:00:04.9]} 56. Nd8 {[%clk 0:00:03.5]} 56... Kd4 {[%clk 0:00:04.6]} 57. Nf7
{[%clk 0:00:03.2]} 57... c3+ {[%clk 0:00:04.9]} 58. Kc1 {[%clk 0:00:03.2]} 58...
e4 {[%clk 0:00:05.3]} 59. h6 {[%clk 0:00:04.1]} 59... e3 {[%clk 0:00:05.3]} 60.
h7 {[%clk 0:00:05]} 60... Bxh7 {[%clk 0:00:05.5]} 0-1

[Event "*** Titled Tuesday Blitz"]
[Site "Chess.com"]
[Date "2020.10.27"]
[Round "5"]
[White "PavelShkapenko"]
[Black "Gordima"]
[Result "1/2-1/2"]
[WhiteElo "2638"]
[BlackElo "2807"]
[TimeControl "180+1"]
[EndTime "10:57:29 PDT"]
[Termination "Game drawn - insufficient material"]

1. e4 {[%clk 0:03:00.9]} 1... e5 {[%clk 0:02:50.9]} 2. Nf3 {[%clk 0:03:00.7]}
2... Nf6 {[%clk 0:02:50.6]} 3. Nxe5 {[%clk 0:02:59.9]} 3... d6 {[%clk
0:02:50.7]} 4. Nf3 {[%clk 0:03:00.5]} 4... Nxe4 {[%clk 0:02:51.2]} 5. d3 {[%clk
0:03:01.4]} 5... Nf6 {[%clk 0:02:51.1]} 6. d4 {[%clk 0:03:01.7]} 6... d5 {[%clk
0:02:51.6]} 7. Bd3 {[%clk 0:02:59.4]} 7... Bd6 {[%clk 0:02:52]} 8. Qe2+ {[%clk
0:02:59.7]} 8... Be6 {[%clk 0:02:52.2]} 9. O-O {[%clk 0:02:46.8]} 9... O-O
{[%clk 0:02:50.1]} 10. Bg5 {[%clk 0:02:44.3]} 10... Nbd7 {[%clk 0:02:44.9]} 11.
c3 {[%clk 0:02:44.4]} 11... c6 {[%clk 0:02:43.6]} 12. Qc2 {[%clk 0:02:44]} 12...
Qc7 {[%clk 0:02:43.1]} 13. Nbd2 {[%clk 0:02:43.9]} 13... Bg4 {[%clk 0:02:38]}
14. Rae1 {[%clk 0:02:40.1]} 14... Rae8 {[%clk 0:02:37.4]} 15. h3 {[%clk
0:02:40]} 15... Bh5 {[%clk 0:02:32.4]} 16. Nh4 {[%clk 0:02:38.6]} 16... Bh2+
{[%clk 0:02:26.7]} 17. Kh1 {[%clk 0:02:37.9]} 17... Bf4 {[%clk 0:02:27.6]} 18.
Bxf4 {[%clk 0:02:37.8]} 18... Qxf4 {[%clk 0:02:28.5]} 19. g3 {[%clk 0:02:38.2]}
19... Qc7 {[%clk 0:02:18.6]} 20. f4 {[%clk 0:02:37.2]} 20... Bg6 {[%clk
0:02:07.5]} 21. Nxg6 {[%clk 0:02:36.4]} 21... hxg6 {[%clk 0:02:07.3]} 22. Nf3
{[%clk 0:02:36.8]} 22... c5 {[%clk 0:01:59.8]} 23. dxc5 {[%clk 0:01:46]} 23...
Nxc5 {[%clk 0:01:59.2]} 24. Rxe8 {[%clk 0:01:42.2]} 24... Rxe8 {[%clk
0:01:59.1]} 25. Re1 {[%clk 0:01:42.1]} 25... Rxe1+ {[%clk 0:01:51.5]} 26. Nxe1
{[%clk 0:01:41.9]} 26... Qc6 {[%clk 0:01:22.1]} 27. Kh2 {[%clk 0:01:22.2]} 27...
Nxd3 {[%clk 0:01:02.9]} 28. Qxd3 {[%clk 0:01:16.2]} 28... Qb6 {[%clk 0:00:38.1]}
29. Qe2 {[%clk 0:01:10.4]} 29... d4 {[%clk 0:00:38]} 30. cxd4 {[%clk 0:01:08.8]}
30... Qxd4 {[%clk 0:00:37.5]} 31. Nf3 {[%clk 0:01:08.9]} 31... Qd5 {[%clk
0:00:35.6]} 32. a3 {[%clk 0:00:47.9]} 32... Ne4 {[%clk 0:00:35.1]} 33. h4 {[%clk
0:00:46]} 33... f6 {[%clk 0:00:31.5]} 34. Qe3 {[%clk 0:00:39.9]} 34... a6 {[%clk
0:00:31.2]} 35. Qd4 {[%clk 0:00:38.7]} 35... Qc6 {[%clk 0:00:31.1]} 36. Qd3
{[%clk 0:00:34.3]} 36... Nf2 {[%clk 0:00:27.3]} 37. Qe2 {[%clk 0:00:25.7]} 37...
Ne4 {[%clk 0:00:22.7]} 38. Qd3 {[%clk 0:00:23.9]} 38... Kh7 {[%clk 0:00:22.8]}
39. Nd2 {[%clk 0:00:20.8]} 39... Nf2 {[%clk 0:00:19.9]} 40. Qf3 {[%clk
0:00:18.3]} 40... Qxf3 {[%clk 0:00:05.8]} 41. Nxf3 {[%clk 0:00:18.5]} 41... Nd3
{[%clk 0:00:04.4]} 42. b4 {[%clk 0:00:18.5]} 42... Kg8 {[%clk 0:00:04.8]} 43.
Nd4 {[%clk 0:00:16.5]} 43... Kf7 {[%clk 0:00:04.5]} 44. Kg2 {[%clk 0:00:16.6]}
44... Ke7 {[%clk 0:00:03.8]} 45. Kf3 {[%clk 0:00:16.8]} 45... Kd6 {[%clk
0:00:04.2]} 46. f5 {[%clk 0:00:13.2]} 46... Kd5 {[%clk 0:00:02.2]} 47. Ne6
{[%clk 0:00:13.4]} 47... Ne5+ {[%clk 0:00:02.2]} 48. Kg2 {[%clk 0:00:12.5]}
48... gxf5 {[%clk 0:00:02.1]} 49. Nxg7 {[%clk 0:00:12.6]} 49... Ke4 {[%clk
0:00:02.6]} 50. h5 {[%clk 0:00:12.9]} 50... Ng4 {[%clk 0:00:03]} 51. Kh3 {[%clk
0:00:09.5]} 51... Nh6 {[%clk 0:00:02.7]} 52. Kg2 {[%clk 0:00:08.8]} 52... f4
{[%clk 0:00:02.7]} 53. gxf4 {[%clk 0:00:06.4]} 53... Kxf4 {[%clk 0:00:03.6]} 54.
Ne8 {[%clk 0:00:06.3]} 54... Kg5 {[%clk 0:00:03.3]} 55. Nd6 {[%clk 0:00:06.5]}
55... b5 {[%clk 0:00:02.1]} 56. Ne4+ {[%clk 0:00:07]} 56... Kxh5 {[%clk
0:00:01.9]} 57. Nxf6+ {[%clk 0:00:07.2]} 57... Kg6 {[%clk 0:00:02.4]} 58. Ne4
{[%clk 0:00:07.3]} 58... Kf5 {[%clk 0:00:02]} 59. Nc5 {[%clk 0:00:07.5]} 59...
Ke5 {[%clk 0:00:02.5]} 60. Nxa6 {[%clk 0:00:07.7]} 60... Kd5 {[%clk 0:00:03.1]}
61. Kf3 {[%clk 0:00:07.2]} 61... Kc4 {[%clk 0:00:03.6]} 62. Ke4 {[%clk
0:00:07.5]} 62... Ng4 {[%clk 0:00:03.6]} 63. Nc7 {[%clk 0:00:06.7]} 63... Nf2+
{[%clk 0:00:03.6]} 64. Ke5 {[%clk 0:00:07]} 64... Nd3+ {[%clk 0:00:02.1]} 65.
Kd6 {[%clk 0:00:07.3]} 65... Nxb4 {[%clk 0:00:03]} 66. axb4 {[%clk 0:00:06.9]}
66... Kxb4 {[%clk 0:00:03.9]} 67. Nxb5 {[%clk 0:00:07.3]} 1/2-1/2

[Event "*** Titled Tuesday Blitz"]
[Site "Chess.com"]
[Date "2020.10.27"]
[Round "5"]
[White "MFBerna"]
[Black "beto-betun"]
[Result "1-0"]
[WhiteElo "2369"]
[BlackElo "2199"]
[TimeControl "180+1"]
[EndTime "10:57:29 PDT"]
[Termination "MFBerna won by resignation"]

1. b3 {[%clk 0:03:00.9]} 1... c5 {[%clk 0:02:50.5]} 2. Bb2 {[%clk 0:03:00.9]}
2... Nc6 {[%clk 0:02:50.3]} 3. Nf3 {[%clk 0:03:01.3]} 3... d5 {[%clk 0:02:50.1]}
4. e3 {[%clk 0:03:00.8]} 4... Nf6 {[%clk 0:02:45.3]} 5. Bb5 {[%clk 0:03:00]}
5... e6 {[%clk 0:02:44.4]} 6. d4 {[%clk 0:02:58.4]} 6... Bd7 {[%clk 0:02:42.9]}
7. O-O {[%clk 0:02:57]} 7... a6 {[%clk 0:02:42.2]} 8. Be2 {[%clk 0:02:57.6]}
8... Be7 {[%clk 0:02:41]} 9. Nbd2 {[%clk 0:02:57.5]} 9... O-O {[%clk 0:02:40.9]}
10. c4 {[%clk 0:02:58]} 10... cxd4 {[%clk 0:02:39]} 11. Nxd4 {[%clk 0:02:58.9]}
11... Nxd4 {[%clk 0:02:38.1]} 12. Bxd4 {[%clk 0:02:59.8]} 12... Bc6 {[%clk
0:02:33]} 13. Nf3 {[%clk 0:02:57.6]} 13... Ne4 {[%clk 0:02:26.4]} 14. Ne5 {[%clk
0:02:52.2]} 14... Bf6 {[%clk 0:02:21.8]} 15. Rc1 {[%clk 0:02:44.5]} 15... Bxe5
{[%clk 0:01:49.3]} 16. Bxe5 {[%clk 0:02:45.4]} 16... Qg5 {[%clk 0:01:46.2]} 17.
Bf4 {[%clk 0:02:45.4]} 17... Qf6 {[%clk 0:01:36]} 18. Bf3 {[%clk 0:02:25.8]}
18... Rfd8 {[%clk 0:01:33]} 19. Qc2 {[%clk 0:02:22.7]} 19... Rd7 {[%clk
0:01:22.8]} 20. cxd5 {[%clk 0:02:20.4]} 20... exd5 {[%clk 0:01:22.6]} 21. Rfd1
{[%clk 0:02:10.5]} 21... Rad8 {[%clk 0:01:21.2]} 22. Bg4 {[%clk 0:02:01.9]}
22... Re7 {[%clk 0:01:12.2]} 23. Bf3 {[%clk 0:01:35.7]} 23... Red7 {[%clk
0:01:10.9]} 24. h3 {[%clk 0:01:28.3]} 24... h6 {[%clk 0:01:10.6]} 25. Qd3 {[%clk
0:01:14.5]} 25... g5 {[%clk 0:01:08.6]} 26. Bh2 {[%clk 0:01:14.5]} 26... Qg6
{[%clk 0:01:03.2]} 27. Qd4 {[%clk 0:01:10.1]} 27... h5 {[%clk 0:01:00.4]} 28.
Be2 {[%clk 0:00:48.1]} 28... g4 {[%clk 0:00:57.1]} 29. hxg4 {[%clk 0:00:46.4]}
29... hxg4 {[%clk 0:00:58]} 30. Bf4 {[%clk 0:00:46.9]} 30... f5 {[%clk
0:00:36.7]} 31. Bd3 {[%clk 0:00:33.3]} 31... Rh7 {[%clk 0:00:33.6]} 32. Kf1
{[%clk 0:00:27.1]} 32... g3 {[%clk 0:00:20.2]} 33. Bxe4 {[%clk 0:00:22.4]} 33...
fxe4 {[%clk 0:00:21.1]} 34. Bxg3 {[%clk 0:00:15.7]} 34... Rf8 {[%clk 0:00:20.1]}
35. Ke2 {[%clk 0:00:14.6]} 35... Qg4+ {[%clk 0:00:17]} 36. Kd2 {[%clk
0:00:14.8]} 36... Qf5 {[%clk 0:00:12.4]} 37. Kc3 {[%clk 0:00:12.5]} 37... Rff7
{[%clk 0:00:11.6]} 38. Kb2 {[%clk 0:00:12.6]} 38... Rd7 {[%clk 0:00:08.7]} 39.
Rh1 {[%clk 0:00:11.1]} 39... Rxh1 {[%clk 0:00:07.9]} 40. Rxh1 {[%clk 0:00:12]}
40... Rh7 {[%clk 0:00:08.1]} 41. Rxh7 {[%clk 0:00:11.6]} 41... Kxh7 {[%clk
0:00:09]} 42. Bf4 {[%clk 0:00:08.7]} 42... Kg6 {[%clk 0:00:09.3]} 43. Qh8 {[%clk
0:00:08.2]} 43... Qf6+ {[%clk 0:00:09]} 44. Qxf6+ {[%clk 0:00:07.9]} 44... Kxf6
{[%clk 0:00:09.9]} 45. Kc3 {[%clk 0:00:08.6]} 45... Kf5 {[%clk 0:00:10.4]} 46.
Kd4 {[%clk 0:00:08.7]} 46... Ke6 {[%clk 0:00:09.1]} 47. g4 {[%clk 0:00:06.5]}
47... Kf6 {[%clk 0:00:08.8]} 48. Kc5 {[%clk 0:00:05.8]} 48... Ke6 {[%clk
0:00:08.6]} 49. a4 {[%clk 0:00:04.5]} 49... Kf6 {[%clk 0:00:08]} 50. Kb6 {[%clk
0:00:04.5]} 50... Ke6 {[%clk 0:00:07.2]} 51. g5 {[%clk 0:00:04.7]} 51... Kf5
{[%clk 0:00:06.6]} 52. b4 {[%clk 0:00:01.5]} 52... Bxa4 {[%clk 0:00:03.6]} 53.
Kxb7 {[%clk 0:00:02.4]} 53... Bb5 {[%clk 0:00:03.9]} 54. Kb6 {[%clk 0:00:02.3]}
54... d4 {[%clk 0:00:04.1]} 55. exd4 {[%clk 0:00:01.9]} 55... Kxf4 {[%clk
0:00:03.1]} 56. g6 {[%clk 0:00:02.4]} 56... Bc4 {[%clk 0:00:01.8]} 57. g7 {[%clk
0:00:02.1]} 57... Kf3 {[%clk 0:00:01.2]} 58. Kc5 {[%clk 0:00:02]} 58... Kxf2
{[%clk 0:00:01.1]} 59. Kxc4 {[%clk 0:00:02.2]} 59... e3 {[%clk 0:00:02]} 60.
g8=Q {[%clk 0:00:02.9]} 60... e2 {[%clk 0:00:02.6]} 61. Qe6 {[%clk 0:00:03.5]}
61... Ke1 {[%clk 0:00:03.1]} 62. d5 {[%clk 0:00:03.3]} 62... a5 {[%clk
0:00:03.7]} 63. Qxe2+ {[%clk 0:00:03.7]} 63... Kxe2 {[%clk 0:00:03.6]} 64. bxa5
{[%clk 0:00:04.6]} 64... Kd1 {[%clk 0:00:04.5]} 65. a6 {[%clk 0:00:05.5]} 65...
Kc2 {[%clk 0:00:05.4]} 66. a7 {[%clk 0:00:06.4]} 66... Kb1 {[%clk 0:00:06.2]}
67. a8=Q {[%clk 0:00:07.3]} 67... Kc1 {[%clk 0:00:07.1]} 68. Qc6 {[%clk
0:00:08.2]} 68... Kd1 {[%clk 0:00:08]} 69. d6 {[%clk 0:00:09.1]} 1-0

[Event "*** Titled Tuesday Blitz"]
[Site "Chess.com"]
[Date "2020.10.27"]
[Round "5"]
[White "ASVZ"]
[Black "Fy_Rakotomaharo"]
[Result "1-0"]
[WhiteElo "2456"]
[BlackElo "2621"]
[TimeControl "180+1"]
[EndTime "10:57:33 PDT"]
[Termination "ASVZ won by resignation"]

1. e4 {[%clk 0:01:25.1]} 1... c5 {[%clk 0:02:59.3]} 2. c3 {[%clk 0:01:25.3]}
2... d6 {[%clk 0:02:59.2]} 3. d4 {[%clk 0:01:25.5]} 3... Nf6 {[%clk 0:02:59.8]}
4. dxc5 {[%clk 0:01:25.9]} 4... Nc6 {[%clk 0:02:58.5]} 5. Nf3 {[%clk 0:01:25.4]}
5... Nxe4 {[%clk 0:02:55.5]} 6. cxd6 {[%clk 0:01:26]} 6... Nxd6 {[%clk
0:02:54.4]} 7. Bf4 {[%clk 0:01:26.1]} 7... f6 {[%clk 0:02:47.4]} 8. Bxd6 {[%clk
0:01:25]} 8... Qxd6 {[%clk 0:02:48.2]} 9. Qxd6 {[%clk 0:01:24.9]} 9... exd6
{[%clk 0:02:49.1]} 10. Na3 {[%clk 0:01:25.7]} 10... Bg4 {[%clk 0:02:43.4]} 11.
Nb5 {[%clk 0:01:20.2]} 11... O-O-O {[%clk 0:02:43.2]} 12. Nfd4 {[%clk
0:01:13.5]} 12... Nxd4 {[%clk 0:02:33.9]} 13. Nxd4 {[%clk 0:01:13.2]} 13... d5
{[%clk 0:02:26.3]} 14. f3 {[%clk 0:01:13.3]} 14... Bd7 {[%clk 0:02:20.6]} 15.
O-O-O {[%clk 0:01:12.2]} 15... Bc5 {[%clk 0:02:18.8]} 16. Bb5 {[%clk 0:01:09.4]}
16... Bxb5 {[%clk 0:02:12.7]} 17. Nxb5 {[%clk 0:01:09.7]} 17... Rhe8 {[%clk
0:02:13.3]} 18. Rhe1 {[%clk 0:01:09.2]} 18... a6 {[%clk 0:02:04.8]} 19. Nd4
{[%clk 0:01:07.2]} 19... Kd7 {[%clk 0:01:50.8]} 20. Nf5 {[%clk 0:00:57.9]} 20...
Rxe1 {[%clk 0:01:49.8]} 21. Rxe1 {[%clk 0:00:58.3]} 21... g6 {[%clk 0:01:48.6]}
22. Nd4 {[%clk 0:00:46.2]} 22... Bd6 {[%clk 0:01:31.5]} 23. g3 {[%clk
0:00:41.9]} 23... h5 {[%clk 0:01:24.3]} 24. Kc2 {[%clk 0:00:39.9]} 24... h4
{[%clk 0:01:12.5]} 25. Re6 {[%clk 0:00:36.1]} 25... Rf8 {[%clk 0:00:50.4]} 26.
f4 {[%clk 0:00:34]} 26... hxg3 {[%clk 0:00:38.1]} 27. hxg3 {[%clk 0:00:34.9]}
27... Bc5 {[%clk 0:00:38.6]} 28. Re2 {[%clk 0:00:33.9]} 28... Rh8 {[%clk
0:00:36.2]} 29. Kd3 {[%clk 0:00:24.6]} 29... Rh3 {[%clk 0:00:32.6]} 30. Re3
{[%clk 0:00:24.7]} 30... Rh2 {[%clk 0:00:33]} 31. Re2 {[%clk 0:00:24.6]} 31...
Rh3 {[%clk 0:00:33.1]} 32. Re3 {[%clk 0:00:25.1]} 32... Bd6 {[%clk 0:00:32.7]}
33. a4 {[%clk 0:00:18.3]} 33... g5 {[%clk 0:00:26.2]} 34. fxg5 {[%clk
0:00:15.9]} 34... fxg5 {[%clk 0:00:27.1]} 35. Nf5 {[%clk 0:00:13.5]} 35... Rh2
{[%clk 0:00:21.6]} 36. Nxd6 {[%clk 0:00:12.2]} 36... Kxd6 {[%clk 0:00:21.3]} 37.
Re2 {[%clk 0:00:11.7]} 37... Rh3 {[%clk 0:00:20.3]} 38. Re3 {[%clk 0:00:12.3]}
38... Kc5 {[%clk 0:00:20.8]} 39. b4+ {[%clk 0:00:12.1]} 39... Kd6 {[%clk
0:00:21.3]} 40. Kd4 {[%clk 0:00:12.2]} 40... Rh1 {[%clk 0:00:20.1]} 41. a5
{[%clk 0:00:11.5]} 41... Rd1+ {[%clk 0:00:18.7]} 42. Rd3 {[%clk 0:00:12]} 42...
Re1 {[%clk 0:00:18.8]} 43. Rf3 {[%clk 0:00:12]} 43... Re4+ {[%clk 0:00:18.1]}
44. Kd3 {[%clk 0:00:12.5]} 44... Ke5 {[%clk 0:00:18.8]} 45. Rf8 {[%clk
0:00:12.5]} 45... Rg4 {[%clk 0:00:18.9]} 46. Re8+ {[%clk 0:00:12]} 46... Kd6
{[%clk 0:00:18.9]} 47. Re3 {[%clk 0:00:12.9]} 47... Rc4 {[%clk 0:00:15]} 48. Rf3
{[%clk 0:00:12.3]} 48... Ke5 {[%clk 0:00:13.9]} 49. Rf7 {[%clk 0:00:11.7]} 49...
Rg4 {[%clk 0:00:13]} 50. Rxb7 {[%clk 0:00:11.7]} 50... Rxg3+ {[%clk 0:00:12.8]}
51. Kc2 {[%clk 0:00:12.6]} 51... g4 {[%clk 0:00:12]} 52. Rb6 {[%clk 0:00:10.6]}
52... Rg2+ {[%clk 0:00:11.4]} 53. Kb3 {[%clk 0:00:09.9]} 53... g3 {[%clk
0:00:08.6]} 54. Rxa6 {[%clk 0:00:09.9]} 54... Kf5 {[%clk 0:00:09.1]} 55. Ra8
{[%clk 0:00:09.9]} 55... Rg1 {[%clk 0:00:07.1]} 56. Rg8 {[%clk 0:00:09.6]} 56...
g2 {[%clk 0:00:06.9]} 57. Kb2 {[%clk 0:00:10.1]} 57... Ke4 {[%clk 0:00:07.1]}
58. a6 {[%clk 0:00:10.3]} 58... d4 {[%clk 0:00:07.3]} 59. cxd4 {[%clk
0:00:09.6]} 59... Rh1 {[%clk 0:00:05.6]} 60. Rxg2 {[%clk 0:00:08.5]} 60... Rh7
{[%clk 0:00:04.7]} 61. b5 {[%clk 0:00:08.9]} 61... Kd5 {[%clk 0:00:04.9]} 62.
Rc2 {[%clk 0:00:09.3]} 62... Kxd4 {[%clk 0:00:04.7]} 63. Kb3 {[%clk 0:00:09.3]}
63... Rh6 {[%clk 0:00:05.6]} 64. Ka4 {[%clk 0:00:09.6]} 64... Kd3 {[%clk
0:00:05.3]} 65. Rc6 {[%clk 0:00:08.7]} 65... Rh4+ {[%clk 0:00:06.2]} 66. Ka5
{[%clk 0:00:08.8]} 66... Rh1 {[%clk 0:00:07.1]} 67. a7 {[%clk 0:00:09.4]} 67...
Ra1+ {[%clk 0:00:08]} 68. Kb6 {[%clk 0:00:10.2]} 68... Kd4 {[%clk 0:00:08.7]}
69. Kb7 {[%clk 0:00:10.4]} 69... Kd5 {[%clk 0:00:09.6]} 70. a8=Q {[%clk
0:00:10]} 70... Rh1 {[%clk 0:00:10.5]} 71. Qd8+ {[%clk 0:00:09.6]} 71... Ke5
{[%clk 0:00:10.2]} 72. Qc7+ {[%clk 0:00:10.5]} 72... Kd5 {[%clk 0:00:10.1]} 73.
Rd6+ {[%clk 0:00:10.6]} 73... Ke5 {[%clk 0:00:11]} 74. Qe7+ {[%clk 0:00:11]}
74... Kf5 {[%clk 0:00:11.9]} 75. Rf6+ {[%clk 0:00:11.3]} 1-0